[Event "Live Chess"]
[Site "Chess.com"]
[Date "2024.06.02"]
[Round "-"]
[White "Bradfield133"]
[Black "dmitro74"]
[Result "1-0"]
[WhiteElo "1852"]
[BlackElo "1732"]
[TimeControl "300"]
[EndTime "5:55:49 PDT"]
[Termination "Bradfield133 won by resignation"]

1. c4 {[%clk 0:04:57.7]} 1... e5 {[%clk 0:04:58.4]} 2. g3 {[%clk 0:04:56.5]}
2... f5 {[%clk 0:04:56.6]} 3. Bg2 {[%clk 0:04:50.8]} 3... Nf6 {[%clk 0:04:54.6]}
4. Nc3 {[%clk 0:04:48]} 4... c6 {[%clk 0:04:52.6]} 5. d4 {[%clk 0:04:43.1]} 5...
e4 {[%clk 0:04:47.5]} 6. d5 {[%clk 0:04:39.5]} 6... d6 {[%clk 0:04:34.2]} 7. Bg5
{[%clk 0:04:30.8]} 7... c5 {[%clk 0:04:25.6]} 8. e3 {[%clk 0:04:21.6]} 8... Nbd7
{[%clk 0:04:18.9]} 9. Nge2 {[%clk 0:04:17.3]} 9... Ne5 {[%clk 0:04:17]} 10. O-O
{[%clk 0:04:12.4]} 10... h6 {[%clk 0:04:13.2]} 11. Bxf6 {[%clk 0:04:08.9]} 11...
Qxf6 {[%clk 0:04:11.7]} 12. f3 {[%clk 0:03:55.5]} 12... Nxc4 {[%clk 0:04:07.3]}
13. Qa4+ {[%clk 0:03:51.5]} 13... Bd7 {[%clk 0:04:04.5]} 14. Qxc4 {[%clk
0:03:49.5]} 14... exf3 {[%clk 0:04:00]} 15. Bxf3 {[%clk 0:03:43.6]} 15... a6
{[%clk 0:03:56.2]} 16. e4 {[%clk 0:03:29.5]} 16... b5 {[%clk 0:03:48.1]} 17. Qd3
{[%clk 0:03:20.5]} 17... Be7 {[%clk 0:03:38.2]} 18. Nf4 {[%clk 0:03:00.7]} 18...
O-O {[%clk 0:03:31.3]} 19. Rae1 {[%clk 0:02:41.5]} 19... g5 {[%clk 0:03:10.1]}
20. Ne6 {[%clk 0:02:36.5]} 20... Bxe6 {[%clk 0:03:05.2]} 21. dxe6 {[%clk
0:02:34.9]} 21... Qd4+ {[%clk 0:02:47.9]} 22. Qxd4 {[%clk 0:02:30.2]} 22... cxd4
{[%clk 0:02:46.5]} 23. Nd5 {[%clk 0:02:23.6]} 23... Ra7 {[%clk 0:02:40.2]} 24.
exf5 {[%clk 0:02:12.2]} 24... Rxf5 {[%clk 0:02:34.9]} 25. Be4 {[%clk 0:02:08.1]}
25... Re5 {[%clk 0:02:29]} 26. Nxe7+ {[%clk 0:01:52.7]} 26... Rxe7 {[%clk
0:02:25.9]} 27. Bf5 {[%clk 0:01:50.1]} 27... Kg7 {[%clk 0:02:16.2]} 28. Rd1
{[%clk 0:01:41.7]} 28... Re2 {[%clk 0:02:04.5]} 29. Rxd4 {[%clk 0:01:34.8]}
29... Rxb2 {[%clk 0:02:02]} 30. Rxd6 {[%clk 0:01:33.3]} 30... Rxa2 {[%clk
0:01:57.5]} 31. Rd7 {[%clk 0:01:32.1]} 31... Rxd7 {[%clk 0:01:55.7]} 32. exd7
{[%clk 0:01:29.9]} 32... Rd2 {[%clk 0:01:54.6]} 33. Rf3 {[%clk 0:01:20.2]} 33...
b4 {[%clk 0:01:46.8]} 34. Rd3 {[%clk 0:01:18.5]} 1-0

[Event "Live Chess"]
[Site "Chess.com"]
[Date "2024.06.02"]
[Round "-"]
[White "JohanKjeldahl"]
[Black "degringolade64"]
[Result "1-0"]
[WhiteElo "1801"]
[BlackElo "2117"]
[TimeControl "300"]
[EndTime "5:56:35 PDT"]
[Termination "JohanKjeldahl won by resignation"]

1. c4 {[%clk 0:04:56.7]} 1... e5 {[%clk 0:04:58.6]} 2. Nc3 {[%clk 0:04:55.4]}
2... Nf6 {[%clk 0:04:58.2]} 3. Nf3 {[%clk 0:04:53.2]} 3... e4 {[%clk 0:04:57.2]}
4. Ng5 {[%clk 0:04:51.6]} 4... c6 {[%clk 0:04:56.1]} 5. Ngxe4 {[%clk 0:04:49.4]}
5... Nxe4 {[%clk 0:04:56]} 6. Nxe4 {[%clk 0:04:48]} 6... d5 {[%clk 0:04:55.7]}
7. cxd5 {[%clk 0:04:46.6]} 7... cxd5 {[%clk 0:04:55.6]} 8. Nc3 {[%clk
0:04:43.9]} 8... d4 {[%clk 0:04:54.8]} 9. Ne4 {[%clk 0:04:42.5]} 9... Nc6 {[%clk
0:04:53.9]} 10. d3 {[%clk 0:04:40.1]} 10... Be6 {[%clk 0:04:51.9]} 11. g3 {[%clk
0:04:36.9]} 11... Bb4+ {[%clk 0:04:49.7]} 12. Bd2 {[%clk 0:04:34.8]} 12... Be7
{[%clk 0:04:48.6]} 13. Rc1 {[%clk 0:04:27.7]} 13... Qd5 {[%clk 0:04:36.4]} 14.
Bg2 {[%clk 0:04:24.4]} 14... Qh5 {[%clk 0:04:28.2]} 15. f3 {[%clk 0:04:14.9]}
15... O-O {[%clk 0:04:18.1]} 16. O-O {[%clk 0:04:13.2]} 16... Rac8 {[%clk
0:04:06.5]} 17. a3 {[%clk 0:04:11.8]} 17... Bh3 {[%clk 0:03:57.8]} 18. Nf2
{[%clk 0:04:07.5]} 18... Bxg2 {[%clk 0:03:56]} 19. Kxg2 {[%clk 0:04:06.5]} 19...
f5 {[%clk 0:03:52.3]} 20. Bf4 {[%clk 0:04:02.6]} 20... g5 {[%clk 0:03:48.4]} 21.
Qb3+ {[%clk 0:03:54.5]} 21... Kh8 {[%clk 0:03:45.3]} 22. Bd2 {[%clk 0:03:46.1]}
22... b6 {[%clk 0:03:04.2]} 23. Qe6 {[%clk 0:03:36.7]} 23... Qg6 {[%clk
0:02:45.4]} 24. Qxg6 {[%clk 0:03:27]} 24... hxg6 {[%clk 0:02:45.3]} 25. Rc4
{[%clk 0:03:24.5]} 25... b5 {[%clk 0:02:17.6]} 26. Rc2 {[%clk 0:03:20.4]} 26...
Ne5 {[%clk 0:02:11.8]} 27. Rfc1 {[%clk 0:03:18.4]} 27... Rxc2 {[%clk 0:02:09.1]}
28. Rxc2 {[%clk 0:03:16.7]} 28... Bd6 {[%clk 0:02:03.3]} 29. f4 {[%clk
0:03:13.1]} 29... gxf4 {[%clk 0:01:53.5]} 30. Bxf4 {[%clk 0:03:11.6]} 30... Ng4
{[%clk 0:01:40.7]} 31. Nxg4 {[%clk 0:03:07.2]} 31... Bxf4 {[%clk 0:01:39.6]} 32.
gxf4 {[%clk 0:03:05]} 32... fxg4 {[%clk 0:01:38.8]} 33. Kg3 {[%clk 0:03:04.1]}
33... a5 {[%clk 0:01:17.4]} 34. Kxg4 {[%clk 0:03:02.4]} 34... Rf5 {[%clk
0:01:15.6]} 35. Rc6 {[%clk 0:02:54.4]} 35... Kg7 {[%clk 0:01:13.7]} 36. Rd6
{[%clk 0:02:51.2]} 36... Rc5 {[%clk 0:01:09.1]} 37. Rxd4 {[%clk 0:02:48.6]}
37... Rc2 {[%clk 0:01:08.3]} 38. Kg5 {[%clk 0:02:43.4]} 38... Rxe2 {[%clk
0:01:05.8]} 39. Rd7+ {[%clk 0:02:41.8]} 39... Kf8 {[%clk 0:01:04.4]} 40. Kxg6
{[%clk 0:02:37.8]} 40... Rxh2 {[%clk 0:01:03]} 41. f5 {[%clk 0:02:31.8]} 41...
Rxb2 {[%clk 0:00:57.6]} 42. Kf6 {[%clk 0:02:28.6]} 42... Ke8 {[%clk 0:00:54.2]}
43. Ra7 {[%clk 0:02:25.2]} 43... b4 {[%clk 0:00:51.5]} 44. axb4 {[%clk
0:02:23.1]} 44... axb4 {[%clk 0:00:50.5]} 45. Rb7 {[%clk 0:02:14.6]} 45... b3
{[%clk 0:00:48.3]} 46. Ke6 {[%clk 0:02:09.7]} 46... Re2+ {[%clk 0:00:46.5]} 47.
Kd6 {[%clk 0:02:07.5]} 47... b2 {[%clk 0:00:45.3]} 48. f6 {[%clk 0:02:05]} 48...
Kf8 {[%clk 0:00:43.5]} 49. d4 {[%clk 0:02:00.8]} 49... Rf2 {[%clk 0:00:35.9]}
50. Ke5 {[%clk 0:01:55.4]} 50... Re2+ {[%clk 0:00:35]} 51. Kd5 {[%clk
0:01:51.6]} 51... Rf2 {[%clk 0:00:32.5]} 52. Rb6 {[%clk 0:01:50.6]} 52... b1=Q
{[%clk 0:00:20.8]} 53. Rxb1 {[%clk 0:01:47.9]} 53... Rxf6 {[%clk 0:00:20.2]} 54.
Re1 {[%clk 0:01:45.8]} 54... Rf2 {[%clk 0:00:16.8]} 55. Kd6 {[%clk 0:01:43.9]}
55... Rf6+ {[%clk 0:00:15]} 56. Kd7 {[%clk 0:01:39.6]} 56... Rf7+ {[%clk
0:00:13.6]} 57. Kc6 {[%clk 0:01:38.4]} 57... Ra7 {[%clk 0:00:12.6]} 58. d5
{[%clk 0:01:36.6]} 58... Ra6+ {[%clk 0:00:11.9]} 59. Kc7 {[%clk 0:01:33.7]}
59... Ra7+ {[%clk 0:00:10.2]} 60. Kb6 {[%clk 0:01:32.7]} 60... Ra2 {[%clk
0:00:08.1]} 61. d6 {[%clk 0:01:30.7]} 61... Rb2+ {[%clk 0:00:07.3]} 62. Kc6
{[%clk 0:01:28.6]} 62... Rc2+ {[%clk 0:00:06.2]} 63. Kd7 {[%clk 0:01:27.3]}
63... Ra2 {[%clk 0:00:02.8]} 64. Rf1+ {[%clk 0:01:25.5]} 64... Kg7 {[%clk
0:00:01.3]} 65. Rf4 {[%clk 0:01:20.4]} 65... Ra7+ {[%clk 0:00:01.2]} 66. Ke6
{[%clk 0:01:18.9]} 66... Kg6 {[%clk 0:00:01.1]} 67. d7 {[%clk 0:01:17.1]} 67...
Rxd7 {[%clk 0:00:00.5]} 68. Kxd7 {[%clk 0:01:15.3]} 68... Kg5 {[%clk 0:00:00.4]}
69. Rf1 {[%clk 0:01:12.9]} 69... Kg4 {[%clk 0:00:00.3]} 70. Ke6 {[%clk
0:01:10.7]} 70... Kg3 {[%clk 0:00:00.2]} 1-0

[Event "Live Chess"]
[Site "Chess.com"]
[Date "2024.06.02"]
[Round "-"]
[White "StoreySniper"]
[Black "TigerTank70"]
[Result "1-0"]
[WhiteElo "2500"]
[BlackElo "2210"]
[TimeControl "300"]
[EndTime "5:56:39 PDT"]
[Termination "StoreySniper won on time"]

1. e4 {[%clk 0:04:57.4]} 1... e5 {[%clk 0:04:58.8]} 2. Nf3 {[%clk 0:04:56]} 2...
Nc6 {[%clk 0:04:57.9]} 3. Bb5 {[%clk 0:04:54.5]} 3... a6 {[%clk 0:04:56.5]} 4.
Bxc6 {[%clk 0:04:53.9]} 4... dxc6 {[%clk 0:04:56.4]} 5. d3 {[%clk 0:04:53.4]}
5... Bg4 {[%clk 0:04:55.4]} 6. h3 {[%clk 0:04:51.5]} 6... Bxf3 {[%clk
0:04:54.3]} 7. Qxf3 {[%clk 0:04:50.3]} 7... Qf6 {[%clk 0:04:51.4]} 8. Qe2 {[%clk
0:04:47.7]} 8... Bc5 {[%clk 0:04:48.4]} 9. Nd2 {[%clk 0:04:46.2]} 9... Ne7
{[%clk 0:04:41.4]} 10. Nb3 {[%clk 0:04:43.1]} 10... Bb6 {[%clk 0:04:36]} 11. Be3
{[%clk 0:04:39.4]} 11... Bxe3 {[%clk 0:04:31.7]} 12. fxe3 {[%clk 0:04:38.6]}
12... Qh4+ {[%clk 0:04:30.2]} 13. Kd2 {[%clk 0:04:32.1]} 13... O-O-O {[%clk
0:04:24]} 14. Raf1 {[%clk 0:04:27.4]} 14... f6 {[%clk 0:04:18.2]} 15. Nc5 {[%clk
0:04:21.3]} 15... Kb8 {[%clk 0:04:08.8]} 16. Kc1 {[%clk 0:04:17]} 16... Rd6
{[%clk 0:04:05.5]} 17. g3 {[%clk 0:04:02.1]} 17... Qh6 {[%clk 0:04:01.3]} 18. g4
{[%clk 0:03:57]} 18... Ka7 {[%clk 0:03:47]} 19. h4 {[%clk 0:03:53.5]} 19... b6
{[%clk 0:03:32.2]} 20. Nb3 {[%clk 0:03:50.5]} 20... c5 {[%clk 0:03:23.9]} 21.
Nd2 {[%clk 0:03:48.7]} 21... Nc6 {[%clk 0:03:22.7]} 22. a3 {[%clk 0:03:46.7]}
22... Rhd8 {[%clk 0:03:20.3]} 23. Kb1 {[%clk 0:03:41.6]} 23... Na5 {[%clk
0:03:13.3]} 24. b3 {[%clk 0:03:28.8]} 24... Qg6 {[%clk 0:03:07.3]} 25. g5 {[%clk
0:03:22.2]} 25... fxg5 {[%clk 0:03:01.6]} 26. hxg5 {[%clk 0:03:21.2]} 26... c4
{[%clk 0:02:48.7]} 27. bxc4 {[%clk 0:03:16.9]} 27... Qxg5 {[%clk 0:02:38.1]} 28.
Rxh7 {[%clk 0:03:12.9]} 28... Rh6 {[%clk 0:02:35]} 29. Rxh6 {[%clk 0:02:51.7]}
29... gxh6 {[%clk 0:02:34.9]} 30. Rf5 {[%clk 0:02:38.1]} 30... Qe7 {[%clk
0:02:26.7]} 31. Kb2 {[%clk 0:02:36.4]} 31... b5 {[%clk 0:02:12.2]} 32. cxb5
{[%clk 0:02:16.6]} 32... Rb8 {[%clk 0:02:09]} 33. Nb3 {[%clk 0:01:42]} 33...
Rxb5 {[%clk 0:02:03.8]} 34. Qd2 {[%clk 0:01:39.7]} 34... Nxb3 {[%clk 0:01:52.4]}
35. cxb3 {[%clk 0:01:38.4]} 35... h5 {[%clk 0:01:51]} 36. d4 {[%clk 0:01:28]}
36... exd4 {[%clk 0:01:44.2]} 37. Qxd4+ {[%clk 0:01:27]} 37... Rb6 {[%clk
0:01:41.3]} 38. Rxh5 {[%clk 0:01:16.7]} 38... Qf7 {[%clk 0:01:35.4]} 39. Rd5
{[%clk 0:01:10.8]} 39... Qf2+ {[%clk 0:01:32.3]} 40. Qd2 {[%clk 0:01:09.1]}
40... Qf6+ {[%clk 0:01:27.8]} 41. e5 {[%clk 0:01:05.3]} 41... Qe6 {[%clk
0:01:20.1]} 42. e4 {[%clk 0:00:58.4]} 42... Kb8 {[%clk 0:00:35.8]} 43. Rd8+
{[%clk 0:00:52.2]} 43... Ka7 {[%clk 0:00:33.2]} 44. Qd5 {[%clk 0:00:51]} 44...
Rc6 {[%clk 0:00:23.7]} 45. Qxe6 {[%clk 0:00:46.7]} 45... Rxe6 {[%clk 0:00:23.6]}
46. Rd5 {[%clk 0:00:43.9]} 46... Kb6 {[%clk 0:00:19.5]} 47. b4 {[%clk
0:00:42.1]} 47... c6 {[%clk 0:00:17.1]} 48. Rc5 {[%clk 0:00:41.1]} 48... Re7
{[%clk 0:00:16.2]} 49. Kc3 {[%clk 0:00:40.1]} 49... Rd7 {[%clk 0:00:15.1]} 50.
e6 {[%clk 0:00:37.7]} 50... Re7 {[%clk 0:00:13.9]} 51. Re5 {[%clk 0:00:36.4]}
51... Kc7 {[%clk 0:00:11.8]} 52. Kd4 {[%clk 0:00:32.7]} 52... Kd6 {[%clk
0:00:10.8]} 53. Ra5 {[%clk 0:00:31.6]} 53... Rxe6 {[%clk 0:00:08.9]} 54. Rxa6
{[%clk 0:00:30.8]} 54... Kc7 {[%clk 0:00:07.9]} 55. Ra7+ {[%clk 0:00:27.7]}
55... Kb6 {[%clk 0:00:06.9]} 56. Rf7 {[%clk 0:00:27.3]} 56... Rd6+ {[%clk
0:00:06.1]} 57. Kc4 {[%clk 0:00:26]} 57... Rd1 {[%clk 0:00:06]} 58. e5 {[%clk
0:00:24.9]} 58... Rc1+ {[%clk 0:00:05.4]} 59. Kb3 {[%clk 0:00:23.2]} 59... Re1
{[%clk 0:00:05.3]} 60. Rf5 {[%clk 0:00:21.3]} 60... Re3+ {[%clk 0:00:04.5]} 61.
Ka4 {[%clk 0:00:19.2]} 61... Re4 {[%clk 0:00:04.4]} 62. Rg5 {[%clk 0:00:17.4]}
62... Re2 {[%clk 0:00:03.4]} 63. Kb3 {[%clk 0:00:16.6]} 63... Re4 {[%clk
0:00:03.3]} 64. a4 {[%clk 0:00:15.7]} 64... Re3+ {[%clk 0:00:02.6]} 65. Kc2
{[%clk 0:00:15.2]} 65... c5 {[%clk 0:00:01.7]} 66. Rg6+ {[%clk 0:00:13]} 66...
Kc7 {[%clk 0:00:01]} 67. b5 {[%clk 0:00:10.7]} 67... Rxe5 {[%clk 0:00:00.1]} 68.
a5 {[%clk 0:00:10]} 1-0

[Event "Live Chess"]
[Site "Chess.com"]
[Date "2024.06.02"]
[Round "-"]
[White "Tatarinov_Maxim"]
[Black "PavelChernomordik"]
[Result "0-1"]
[WhiteElo "2285"]
[BlackElo "2504"]
[TimeControl "300"]
[EndTime "5:56:43 PDT"]
[Termination "PavelChernomordik won by resignation"]

1. Nf3 {[%clk 0:04:56.4]} 1... g6 {[%clk 0:04:58.8]} 2. g3 {[%clk 0:04:50.2]}
2... Bg7 {[%clk 0:04:57.8]} 3. Bg2 {[%clk 0:04:49.9]} 3... e5 {[%clk 0:04:56.7]}
4. O-O {[%clk 0:04:47.3]} 4... Nc6 {[%clk 0:04:55.6]} 5. d3 {[%clk 0:04:45.9]}
5... d6 {[%clk 0:04:54.6]} 6. c4 {[%clk 0:04:44.4]} 6... h6 {[%clk 0:04:52.1]}
7. Nc3 {[%clk 0:04:42.6]} 7... Nge7 {[%clk 0:04:50.9]} 8. Rb1 {[%clk 0:04:41.9]}
8... Be6 {[%clk 0:04:49.1]} 9. b4 {[%clk 0:04:40.5]} 9... Qd7 {[%clk 0:04:48]}
10. b5 {[%clk 0:04:38.3]} 10... Nd8 {[%clk 0:04:47]} 11. Re1 {[%clk 0:04:33.2]}
11... Bh3 {[%clk 0:04:38.5]} 12. Bh1 {[%clk 0:04:31.8]} 12... Ne6 {[%clk
0:04:30.2]} 13. a4 {[%clk 0:04:27.9]} 13... O-O {[%clk 0:04:25.2]} 14. Ba3
{[%clk 0:04:26.4]} 14... f5 {[%clk 0:04:21.4]} 15. Nd2 {[%clk 0:04:19.9]} 15...
Rab8 {[%clk 0:04:17.1]} 16. Nd5 {[%clk 0:03:57.6]} 16... Kh7 {[%clk 0:04:03.9]}
17. Nb3 {[%clk 0:03:47]} 17... Ng8 {[%clk 0:03:48.6]} 18. c5 {[%clk 0:03:42.6]}
18... c6 {[%clk 0:03:34.6]} 19. bxc6 {[%clk 0:03:34]} 19... bxc6 {[%clk
0:03:32.9]} 20. Ne3 {[%clk 0:03:16.9]} 20... d5 {[%clk 0:03:29.6]} 21. Na5
{[%clk 0:03:08.9]} 21... f4 {[%clk 0:03:21.7]} 22. Nc2 {[%clk 0:02:56.3]} 22...
Rxb1 {[%clk 0:03:14.9]} 23. Qxb1 {[%clk 0:02:54.1]} 23... Qf7 {[%clk 0:03:12.7]}
24. f3 {[%clk 0:02:31.5]} 24... Ne7 {[%clk 0:03:02.9]} 25. Qb7 {[%clk 0:02:27]}
25... e4 {[%clk 0:02:39.3]} 26. Nxc6 {[%clk 0:01:58.2]} 26... Nxc6 {[%clk
0:02:30.8]} 27. Qxc6 {[%clk 0:01:56.4]} 27... Nd4 {[%clk 0:02:25]} 28. Nxd4
{[%clk 0:01:12.4]} 28... Bxd4+ {[%clk 0:02:22.2]} 29. e3 {[%clk 0:01:12.3]}
29... fxe3 {[%clk 0:02:11.9]} 0-1

[Event "Live Chess"]
[Site "Chess.com"]
[Date "2024.06.02"]
[Round "-"]
[White "ameetghasi100"]
[Black "Dhaydon19"]
[Result "0-1"]
[WhiteElo "2749"]
[BlackElo "2653"]
[TimeControl "300"]
[EndTime "5:56:51 PDT"]
[Termination "Dhaydon19 won by resignation"]

1. b3 {[%clk 0:04:59.4]} 1... c6 {[%clk 0:04:56.5]} 2. Bb2 {[%clk 0:04:58.8]}
2... d5 {[%clk 0:04:56.2]} 3. e3 {[%clk 0:04:58.4]} 3... Nf6 {[%clk 0:04:55.8]}
4. Nf3 {[%clk 0:04:58]} 4... g6 {[%clk 0:04:55.4]} 5. g3 {[%clk 0:04:57.5]} 5...
Bg7 {[%clk 0:04:55.1]} 6. d4 {[%clk 0:04:57]} 6... Nh5 {[%clk 0:04:54.9]} 7. Bg2
{[%clk 0:04:56.6]} 7... Nf6 {[%clk 0:04:54.6]} 8. O-O {[%clk 0:04:56.1]} 8...
O-O {[%clk 0:04:54.3]} 9. c4 {[%clk 0:04:55.8]} 9... Nbd7 {[%clk 0:04:53.6]} 10.
Nc3 {[%clk 0:04:55.4]} 10... dxc4 {[%clk 0:04:51.5]} 11. bxc4 {[%clk 0:04:54.7]}
11... Nb6 {[%clk 0:04:51.2]} 12. Qe2 {[%clk 0:04:54.3]} 12... Be6 {[%clk
0:04:49.8]} 13. Nd2 {[%clk 0:04:53.8]} 13... Qc7 {[%clk 0:04:47.1]} 14. e4
{[%clk 0:04:52]} 14... Rfd8 {[%clk 0:04:44.4]} 15. c5 {[%clk 0:04:28.8]} 15...
Nbd7 {[%clk 0:04:39.2]} 16. f4 {[%clk 0:04:20.9]} 16... Bg4 {[%clk 0:04:24.3]}
17. Qf2 {[%clk 0:04:17.7]} 17... Nf8 {[%clk 0:04:18.8]} 18. h3 {[%clk
0:04:16.2]} 18... Bc8 {[%clk 0:04:17.9]} 19. Nf3 {[%clk 0:04:04]} 19... b6
{[%clk 0:04:15]} 20. cxb6 {[%clk 0:03:59.1]} 20... axb6 {[%clk 0:04:13.8]} 21.
Rac1 {[%clk 0:03:55.1]} 21... Ba6 {[%clk 0:04:10.1]} 22. Rfd1 {[%clk 0:03:54.1]}
22... Qb7 {[%clk 0:04:04.8]} 23. g4 {[%clk 0:03:46.8]} 23... Ne6 {[%clk
0:03:59.3]} 24. Ne5 {[%clk 0:03:19.2]} 24... c5 {[%clk 0:03:50.8]} 25. d5 {[%clk
0:02:25.1]} 25... Nd4 {[%clk 0:03:48.5]} 26. Nc6 {[%clk 0:02:11]} 26... Rdc8
{[%clk 0:02:43.9]} 27. e5 {[%clk 0:02:04.8]} 27... Ne8 {[%clk 0:02:39]} 28. Nxd4
{[%clk 0:02:00.8]} 28... cxd4 {[%clk 0:02:37.9]} 29. Rxd4 {[%clk 0:02:00.4]}
29... Rab8 {[%clk 0:02:35.3]} 30. Rcd1 {[%clk 0:01:57.9]} 30... Bc4 {[%clk
0:02:26.3]} 31. Ba3 {[%clk 0:01:47.8]} 31... b5 {[%clk 0:02:22.3]} 32. d6 {[%clk
0:01:42.8]} 32... Qa6 {[%clk 0:02:14.3]} 33. d7 {[%clk 0:01:38.4]} 33... Qxa3
{[%clk 0:02:12.6]} 34. dxc8=Q {[%clk 0:01:32.5]} 34... Rxc8 {[%clk 0:02:11.4]}
35. Rd8 {[%clk 0:01:25.4]} 35... Rxd8 {[%clk 0:02:08.4]} 36. Rxd8 {[%clk
0:01:25]} 36... Qxc3 {[%clk 0:02:05.3]} 37. Rxe8+ {[%clk 0:01:23.7]} 37... Bf8
{[%clk 0:02:04.3]} 38. Rd8 {[%clk 0:01:10]} 38... Kg7 {[%clk 0:01:59.9]} 39. Qd4
{[%clk 0:00:49.9]} 39... Qxd4+ {[%clk 0:01:58.4]} 40. Rxd4 {[%clk 0:00:48.9]}
40... e6 {[%clk 0:01:58.1]} 41. Rd7 {[%clk 0:00:45.7]} 41... Bxa2 {[%clk
0:01:51.9]} 42. Rb7 {[%clk 0:00:40.8]} 42... b4 {[%clk 0:01:48.2]} 43. Bc6
{[%clk 0:00:40.1]} 43... Bc5+ {[%clk 0:01:44.8]} 44. Kf1 {[%clk 0:00:37.1]}
44... Bc4+ {[%clk 0:01:40.4]} 45. Ke1 {[%clk 0:00:35.9]} 45... b3 {[%clk
0:01:34.2]} 46. Kd2 {[%clk 0:00:26.4]} 46... Bd4 {[%clk 0:01:29]} 47. Rb4 {[%clk
0:00:24.1]} 47... b2 {[%clk 0:01:19.2]} 48. Be4 {[%clk 0:00:23.7]} 48... Bd5
{[%clk 0:01:14.8]} 49. Bb1 {[%clk 0:00:20.6]} 49... Bc5 {[%clk 0:01:07.5]} 50.
Rxb2 {[%clk 0:00:20]} 50... Bg2 {[%clk 0:01:06.6]} 51. Rb3 {[%clk 0:00:18.8]}
51... Bd5 {[%clk 0:01:03.4]} 52. Rg3 {[%clk 0:00:17.8]} 52... Bf2 {[%clk
0:01:01.6]} 53. Ra3 {[%clk 0:00:17.4]} 53... Bg2 {[%clk 0:00:58.6]} 54. f5
{[%clk 0:00:16.3]} 54... exf5 {[%clk 0:00:54.8]} 55. gxf5 {[%clk 0:00:16]} 55...
gxf5 {[%clk 0:00:53.9]} 56. Bxf5 {[%clk 0:00:15.4]} 56... h5 {[%clk 0:00:52.1]}
57. Ra2 {[%clk 0:00:14.3]} 57... Bh4 {[%clk 0:00:50.8]} 58. Ke3 {[%clk
0:00:13.4]} 58... Bd5 {[%clk 0:00:47.9]} 59. Kf4 {[%clk 0:00:12.9]} 59... Bxa2
{[%clk 0:00:46.4]} 60. Be4 {[%clk 0:00:12.6]} 60... Be6 {[%clk 0:00:45.5]} 61.
Bf3 {[%clk 0:00:12.4]} 61... Kh6 {[%clk 0:00:44.2]} 62. Be4 {[%clk 0:00:11.5]}
62... Bg5+ {[%clk 0:00:43.8]} 63. Kf3 {[%clk 0:00:10.7]} 63... h4 {[%clk
0:00:43.5]} 64. Kg2 {[%clk 0:00:08.8]} 64... Bf4 {[%clk 0:00:42.6]} 0-1

[Event "Live Chess"]
[Site "Chess.com"]
[Date "2024.06.02"]
[Round "-"]
[White "alicechristina"]
[Black "imchessive"]
[Result "1-0"]
[WhiteElo "1951"]
[BlackElo "1590"]
[TimeControl "300"]
[EndTime "5:56:51 PDT"]
[Termination "alicechristina won by resignation"]

1. c4 {[%clk 0:04:57]} 1... f5 {[%clk 0:04:58.2]} 2. Nc3 {[%clk 0:04:54.4]} 2...
Nf6 {[%clk 0:04:56.4]} 3. g3 {[%clk 0:04:53.9]} 3... c6 {[%clk 0:04:54.6]} 4.
Bg2 {[%clk 0:04:53.4]} 4... d6 {[%clk 0:04:52]} 5. e4 {[%clk 0:04:52.8]} 5...
fxe4 {[%clk 0:04:50.4]} 6. Nxe4 {[%clk 0:04:51.9]} 6... g6 {[%clk 0:04:46.8]} 7.
d4 {[%clk 0:04:49.4]} 7... Bg7 {[%clk 0:04:44.9]} 8. Ne2 {[%clk 0:04:47.9]} 8...
O-O {[%clk 0:04:43.7]} 9. O-O {[%clk 0:04:46.9]} 9... Bf5 {[%clk 0:04:38.9]} 10.
N2c3 {[%clk 0:04:45.5]} 10... Nxe4 {[%clk 0:04:33.1]} 11. Nxe4 {[%clk
0:04:43.4]} 11... d5 {[%clk 0:04:30.4]} 12. cxd5 {[%clk 0:04:38.7]} 12... cxd5
{[%clk 0:04:30.3]} 13. Ng5 {[%clk 0:04:37.3]} 13... Nc6 {[%clk 0:04:16.4]} 14.
Be3 {[%clk 0:04:33.2]} 14... Qb6 {[%clk 0:03:59.9]} 15. Nf3 {[%clk 0:04:23.1]}
15... Be4 {[%clk 0:03:58.1]} 16. Qb3 {[%clk 0:04:15.7]} 16... Qxb3 {[%clk
0:03:33.4]} 17. axb3 {[%clk 0:04:07]} 17... Bxf3 {[%clk 0:03:25.6]} 18. Bxf3
{[%clk 0:04:03.6]} 18... Bxd4 {[%clk 0:03:23.4]} 19. Bxd5+ {[%clk 0:04:01.6]}
19... Kg7 {[%clk 0:03:16.4]} 20. Bxc6 {[%clk 0:03:45]} 20... Bxe3 {[%clk
0:03:04.6]} 21. Bxb7 {[%clk 0:03:43.8]} 21... Bxf2+ {[%clk 0:03:00.4]} 22. Rxf2
{[%clk 0:03:40.8]} 22... Rxf2 {[%clk 0:02:54.6]} 23. Kxf2 {[%clk 0:03:39.9]}
23... Rb8 {[%clk 0:02:47.5]} 24. Rxa7 {[%clk 0:03:38]} 24... Kf6 {[%clk
0:02:27.8]} 25. Bd5 {[%clk 0:03:19.2]} 25... e6 {[%clk 0:02:23.1]} 26. Ra6
{[%clk 0:03:17.2]} 26... Re8 {[%clk 0:02:13]} 27. Rxe6+ {[%clk 0:03:15.9]} 27...
Rxe6 {[%clk 0:02:10.2]} 28. Bxe6 {[%clk 0:03:15.4]} 28... Kxe6 {[%clk
0:02:10.1]} 29. Ke3 {[%clk 0:03:14.4]} 29... Kd5 {[%clk 0:02:09.3]} 30. Kf4
{[%clk 0:03:12.8]} 1-0

[Event "Live Chess"]
[Site "Chess.com"]
[Date "2024.06.02"]
[Round "-"]
[White "megabusyman"]
[Black "Grace6363"]
[Result "1-0"]
[WhiteElo "1868"]
[BlackElo "1134"]
[TimeControl "300"]
[EndTime "5:57:25 PDT"]
[Termination "megabusyman won by resignation"]

1. e4 {[%clk 0:04:57.8]} 1... c5 {[%clk 0:04:57.6]} 2. Nc3 {[%clk 0:04:56.8]}
2... Nc6 {[%clk 0:04:56.5]} 3. f4 {[%clk 0:04:55.7]} 3... d6 {[%clk 0:04:52.8]}
4. Nf3 {[%clk 0:04:54.3]} 4... Bg4 {[%clk 0:04:51.9]} 5. Bb5 {[%clk 0:04:51.7]}
5... Qb6 {[%clk 0:04:48.9]} 6. Nd5 {[%clk 0:04:45.1]} 6... Qd8 {[%clk
0:04:38.1]} 7. c3 {[%clk 0:04:24.9]} 7... e6 {[%clk 0:04:37.2]} 8. Ne3 {[%clk
0:04:19.3]} 8... Bxf3 {[%clk 0:04:34.8]} 9. Qxf3 {[%clk 0:04:17.5]} 9... Be7
{[%clk 0:04:31.4]} 10. O-O {[%clk 0:04:13.7]} 10... Nf6 {[%clk 0:04:29.7]} 11.
d3 {[%clk 0:04:11.1]} 11... a6 {[%clk 0:04:28]} 12. Bxc6+ {[%clk 0:04:03.3]}
12... bxc6 {[%clk 0:04:27.2]} 13. e5 {[%clk 0:04:02.6]} 13... Nd5 {[%clk
0:04:19.1]} 14. c4 {[%clk 0:03:56.2]} 14... Nxe3 {[%clk 0:04:14.9]} 15. Qxc6+
{[%clk 0:03:53.1]} 15... Kf8 {[%clk 0:04:10.9]} 16. Bxe3 {[%clk 0:03:51.7]}
16... dxe5 {[%clk 0:04:01.8]} 17. fxe5 {[%clk 0:03:50.4]} 17... g6 {[%clk
0:03:58.3]} 18. Qxe6 {[%clk 0:03:26.5]} 18... f5 {[%clk 0:03:35.5]} 19. exf6
{[%clk 0:03:09.3]} 19... Qd6 {[%clk 0:03:34.6]} 20. fxe7+ {[%clk 0:03:02]} 1-0